bitfinex/quotes_BTCUSD_20240605
["timestamp","ask_amount","ask_price","bid_price","bid_amount"]
[1717629499105,1.24326209,71217.0,71216.0,0.009493]
[1717629499537,1.52409309,71217.0,71216.0,0.009493]
[1717629499746,1.62409309,71217.0,71216.0,0.009493]
[1717629500398,1.34326209,71217.0,71216.0,0.009493]
[1717629502008,1.41146209,71217.0,71216.0,0.009493]
[1717629503182,1.70270446,71217.0,71216.0,0.009493]
[1717629503829,1.54810379,71217.0,71216.0,0.009493]
[1717629504029,1.61630379,71217.0,71216.0,0.173393]
[1717629504534,1.61632644,71217.0,71216.0,0.173393]
[1717629504730,1.70272711,71217.0,71216.0,0.173393]
[1717629505330,1.61632644,71217.0,71216.0,0.173393]
[1717629506740,1.70272711,71217.0,71216.0,0.173393]
[1717629507143,1.61632644,71217.0,71216.0,0.173393]
[1717629508099,1.70272711,71217.0,71216.0,0.173393]
[1717629508302,1.61632644,71217.0,71216.0,0.173393]
[1717629509880,1.67253144,71217.0,71216.0,0.173393]
[1717629511071,1.59972072,71217.0,71216.0,0.173393]
[1717629511285,1.67253037,71217.0,71216.0,0.173393]
[1717629511454,1.75893104,71217.0,71216.0,0.173393]
[1717629512289,1.68967555,71217.0,71216.0,0.173393]
[1717629514043,1.77607622,71217.0,71216.0,0.173393]
[1717629514373,1.77607622,71217.0,71216.0,0.009493]
[1717629515870,2.05690722,71217.0,71216.0,0.009493]
[1717629516288,2.05690723,71217.0,71216.0,0.009493]
[1717629516711,1.97050656,71217.0,71216.0,0.009493]
[1717629516853,1.67926419,71217.0,71216.0,0.009493]
[1717629517055,1.39843319,71217.0,71216.0,0.009493]
[1717629517300,1.67567854,71217.0,71216.0,0.009493]
[1717629517508,1.66167854,71217.0,71216.0,0.009493]
[1717629517765,1.67567854,71217.0,71216.0,0.009493]
[1717629517911,1.68967854,71217.0,71216.0,0.009493]
[1717629518949,1.77607921,71217.0,71216.0,0.009493]
[1717629519328,1.77608008,71217.0,71216.0,0.009493]
[1717629522417,1.77608381,71217.0,71216.0,0.009493]
[1717629522644,1.90231104,71217.0,71216.0,0.009493]
[1717629524699,1.82949965,71217.0,71216.0,0.009493]
[1717629524882,1.90231104,71217.0,71216.0,0.009493]
[1717629525898,2.21160331,71217.0,71216.0,0.009493]
[1717629526302,2.12520264,71217.0,71216.0,0.009493]
[1717629526727,2.49243431,71217.0,71216.0,0.009493]
[1717629530700,2.42423431,71217.0,71216.0,0.009493]
[1717629530975,2.49243431,71217.0,71216.0,0.009493]
[1717629533092,2.49248526,71217.0,71216.0,0.009493]
[1717629537354,2.87548526,71217.0,71216.0,0.009493]
[1717629537765,3.15631626,71217.0,71216.0,0.009493]
[1717629538184,2.87548526,71217.0,71216.0,0.009493]
[1717629539187,2.65058826,71217.0,71216.0,0.009493]
[1717629539402,2.64008826,71217.0,71216.0,0.009493]
[1717629540861,2.92091926,71217.0,71216.0,0.009493]
[1717629541898,2.99764726,71217.0,71216.0,0.009493]
[1717629542100,3.09597344,71217.0,71216.0,0.009493]
[1717629542328,3.08543871,71217.0,71216.0,0.009493]
[1717629542959,3.07143871,71217.0,71216.0,0.009493]
[1717629543164,2.98402642,71217.0,71216.0,0.009493]
[1717629543406,2.99802642,71217.0,71216.0,0.009493]
[1717629544287,3.05791037,71217.0,71216.0,0.009493]
[1717629544503,3.12611037,71217.0,71216.0,0.009493]
[1717629544754,2.55957699,71217.0,71216.0,0.009493]
[1717629544972,2.55957699,71217.0,71216.0,0.254893]
[1717629544973,2.40858561,71217.0,71216.0,0.254893]
[1717629545178,2.49498628,71217.0,71216.0,0.254893]
[1717629545794,2.36318679,71217.0,71216.0,0.009493]
[1717629546014,2.59689054,71217.0,71216.0,0.009493]
[1717629546221,2.61089054,71217.0,71216.0,0.009493]
[1717629546429,2.75297476,71217.0,71216.0,0.009493]
[1717629546836,2.6230705,71217.0,71216.0,0.009493]
[1717629546992,2.6370705,71217.0,71216.0,0.009493]
[1717629548029,2.6230705,71217.0,71216.0,0.009493]
[1717629548548,2.9179015,71217.0,71216.0,0.009493]
[1717629548747,2.6370705,71217.0,71216.0,0.009493]
[1717629549307,2.9179015,71217.0,71216.0,0.009493]
[1717629550762,0.49761024,71209.0,71208.0,0.027872]
[1717629550969,2.40259984,71209.0,71208.0,0.027872]
[1717629551166,0.43256257,71199.0,71198.0,0.0826]
[1717629551340,1.45693868,71199.0,71198.0,0.0826]
[1717629551541,1.89249431,71199.0,71198.0,0.09024103]
[1717629551744,1.96531363,71199.0,71198.0,0.0826]
[1717629552366,2.24621563,71199.0,71198.0,0.0826]
[1717629552947,2.26021563,71199.0,71198.0,0.0826]
[1717629553150,1.95081505,71199.0,71198.0,0.0826]
[1717629553374,1.93681505,71199.0,71198.0,0.0826]
[1717629554261,1.72425933,71199.0,71198.0,0.0826]
[1717629555032,1.73825933,71199.0,71198.0,0.0826]
[1717629555222,1.72425933,71199.0,71198.0,0.0826]
[1717629555429,1.81066,71199.0,71198.0,0.0826]
[1717629555630,1.82466,71199.0,71198.0,0.0826]
[1717629555818,1.52754884,71199.0,71198.0,0.0826]
[1717629556167,1.83873101,71199.0,71198.0,0.0826]
[1717629556353,1.83873101,71199.0,71194.0,0.009493]
[1717629556354,0.79988524,71197.0,71194.0,0.009493]
[1717629556565,1.36490499,71197.0,71196.0,0.240093]
[1717629557450,0.9809035,71197.0,71196.0,0.240093]
[1717629557656,1.37892151,71197.0,71196.0,0.240093]
[1717629558479,1.46112151,71197.0,71196.0,0.240093]
[1717629561201,1.56610697,71197.0,71196.0,0.240093]
[1717629561416,1.62232697,71197.0,71196.0,0.240093]
[1717629562027,1.51734151,71197.0,71196.0,0.240093]
[1717629562177,1.62231486,71197.0,71196.0,0.240093]
[1717629563029,1.1333235,71197.0,71196.0,0.240093]
[1717629563652,1.43048889,71197.0,71196.0,0.240093]
[1717629563896,1.48932225,71197.0,71196.0,0.240093]
[1717629564044,1.50333456,71197.0,71196.0,0.240093]
[1717629564677,1.69470795,71197.0,71196.0,0.240093]
[1717629565081,1.69470861,71197.0,71196.0,0.240093]
[1717629565307,1.70870177,71197.0,71196.0,0.240093]
[1717629566294,1.70870177,71197.0,71196.0,0.087393]
[1717629566920,1.70869747,71197.0,71196.0,0.087393]
[1717629567127,1.60373871,71197.0,71196.0,0.087393]
[1717629567341,1.60373871,71197.0,71196.0,0.009493]
[1717629567549,2.04020029,71197.0,71196.0,0.009493]
[1717629568431,2.32111029,71197.0,71196.0,0.009493]
[1717629568874,2.30711029,71197.0,71196.0,0.009493]
[1717629569087,2.30712474,71197.0,71196.0,0.009493]
[1717629569293,2.04021474,71197.0,71196.0,0.009493]
[1717629569522,1.86709687,71197.0,71196.0,0.009493]
[1717629569964,1.89509687,71197.0,71196.0,0.009493]
[1717629570544,1.88109687,71197.0,71196.0,0.009493]
[1717629570756,1.89509687,71197.0,71196.0,0.009493]
[1717629575321,1.8086962,71197.0,71196.0,0.009493]
[1717629575865,1.49750397,71197.0,71196.0,0.009493]
[1717629576061,1.895096,71197.0,71196.0,0.009493]
[1717629579447,2.04021387,71197.0,71196.0,0.009493]
[1717629582676,1.895096,71197.0,71196.0,0.009493]
[1717629584561,2.323606,71197.0,71196.0,0.009493]
[1717629585394,2.04270393,71197.0,71196.0,0.009493]
[1717629585812,2.32361393,71197.0,71196.0,0.009493]
[1717629586227,2.40131393,71197.0,71196.0,0.009493]
[1717629586441,2.5464318,71197.0,71196.0,0.009493]
[1717629587063,2.40114491,71197.0,71196.0,0.009493]
[1717629587470,2.05203491,71197.0,71196.0,0.009493]
[1717629587680,2.12023491,71197.0,71196.0,0.009493]
[1717629588758,2.40114491,71197.0,71196.0,0.009493]
[1717629589179,3.41921534,71197.0,71196.0,0.009493]
[1717629589580,2.98210345,71197.0,71196.0,0.009493]
[1717629589790,3.41935823,71197.0,71196.0,0.009493]
[1717629590217,3.87409989,71197.0,71196.0,0.009493]
[1717629590653,3.12722132,71197.0,71196.0,0.009493]
[1717629590860,3.94381851,71197.0,71196.0,0.009493]
[1717629591277,3.87410704,71197.0,71196.0,0.009493]
[1717629591484,3.79640704,71197.0,71196.0,0.009493]
[1717629591701,3.87170704,71197.0,71196.0,0.009493]
[1717629592132,0.09744122,71195.0,71194.0,0.00672775]
[1717629592338,0.66643022,71193.0,71192.0,0.007529]
[1717629592550,2.6304224,71193.0,71192.0,0.007529]
[1717629592754,3.62795774,71193.0,71192.0,0.007529]
[1717629592960,3.77307561,71193.0,71192.0,0.007529]
[1717629593572,3.84837561,71193.0,71192.0,0.007529]
[1717629593780,4.29947456,71193.0,71192.0,0.007529]
[1717629594208,3.84837561,71193.0,71192.0,0.007529]
[1717629594626,4.00437182,71193.0,71192.0,0.007529]
[1717629595141,3.71734854,71193.0,71192.0,0.007529]
[1717629595395,3.73134854,71193.0,71192.0,0.007529]
[1717629597793,3.73135927,71193.0,71192.0,0.007529]
[1717629598396,3.49628894,71193.0,71192.0,0.007529]
[1717629599023,3.34761085,71193.0,71192.0,0.007529]
[1717629599240,3.3370768,71193.0,71192.0,0.007529]
[1717629599843,3.48219467,71193.0,71192.0,0.007529]
[1717629601356,3.3370768,71193.0,71192.0,0.007529]
[1717629601576,3.34761085,71193.0,71192.0,0.007529]
[1717629601979,3.63692753,71193.0,71192.0,0.007529]
[1717629602165,3.64746149,71193.0,71192.0,0.007529]
[1717629602331,3.57739038,71193.0,71192.0,0.007529]
[1717629602531,3.49497285,71193.0,71192.0,0.007529]
[1717629602733,3.63690223,71193.0,71192.0,0.007529]
[1717629602938,3.64009072,71193.0,71192.0,0.007529]
[1717629603137,3.78201901,71193.0,71192.0,0.007529]
[1717629603697,3.72248221,71193.0,71192.0,0.007529]
[1717629604134,3.7224807,71193.0,71192.0,0.007529]
[1717629604339,3.49272708,71193.0,71192.0,0.007529]
[1717629604571,3.63465537,71193.0,71192.0,0.007529]
[1717629604776,3.72248141,71193.0,71192.0,0.007529]
[1717629604980,3.78222288,71193.0,71192.0,0.007529]
[1717629605632,3.78222309,71193.0,71192.0,0.007529]
[1717629605846,3.63710522,71193.0,71192.0,0.007529]
[1717629607159,3.64763745,71193.0,71192.0,0.007529]
[1717629607585,3.56123678,71193.0,71192.0,0.007529]
[1717629607798,3.34760782,71193.0,71192.0,0.007529]
[1717629608014,3.33707559,71193.0,71192.0,0.007529]
[1717629609350,3.34760782,71193.0,71192.0,0.007529]
[1717629609761,3.49272569,71193.0,71192.0,0.007529]
[1717629611062,1.22829622,71192.0,71191.0,0.004022]
[1717629611268,2.60688959,71192.0,71191.0,0.004022]
[1717629611477,2.68757357,71192.0,71191.0,0.004022]
[1717629611660,2.83269144,71192.0,71191.0,0.004022]
[1717629612024,2.83537953,71192.0,71191.0,0.004022]
[1717629612251,2.83304977,71192.0,71191.0,0.004022]
[1717629613087,2.84704977,71192.0,71191.0,0.004022]
[1717629613306,2.95074335,71192.0,71191.0,0.004022]
[1717629613426,2.94021196,71192.0,71191.0,0.004022]
[1717629613633,2.95421196,71192.0,71191.0,0.004022]
[1717629614048,2.79053245,71192.0,71191.0,0.004022]
[1717629614243,3.04194934,71192.0,71191.0,0.004022]
[1717629614452,3.18384306,71192.0,71191.0,0.004022]
[1717629616345,3.04194934,71192.0,71191.0,0.004022]
[1717629616546,2.9541219,71192.0,71191.0,0.004022]
[1717629616796,2.95406425,71192.0,71191.0,0.004022]
[1717629618065,2.79052422,71192.0,71191.0,0.004022]
[1717629618247,2.86052485,71192.0,71191.0,0.004022]
[1717629618659,2.95357678,71192.0,71191.0,0.004022]
[1717629619016,3.04140393,71192.0,71191.0,0.004022]
[1717629621363,3.18329765,71192.0,71191.0,0.004022]
[1717629623876,3.18330499,71192.0,71191.0,0.004022]
[1717629626984,0.79983622,71185.0,71180.0,0.0768]
[1717629627190,1.95849189,71185.0,71177.0,0.000946]
[1717629627390,2.93703659,71185.0,71177.0,0.000946]
[1717629627620,3.17943659,71185.0,71177.0,0.000946]
[1717629627847,3.61656128,71185.0,71177.0,0.000946]
[1717629628051,3.76167915,71185.0,71177.0,0.000946]
[1717629628517,1.48087422,71179.0,71178.0,1e-08]
[1717629628739,3.81179307,71179.0,71178.0,1e-08]
[1717629628927,3.9050586,71179.0,71178.0,1e-08]
[1717629629539,4.04690915,71179.0,71178.0,1e-08]
[1717629629766,4.19202702,71179.0,71178.0,1e-08]
[1717629630189,4.06417647,71179.0,71178.0,1e-08]
[1717629630413,4.20599924,71179.0,71178.0,1e-08]
[1717629630642,4.06417647,71179.0,71178.0,1e-08]
[1717629630856,4.07817647,71179.0,71178.0,1e-08]
[1717629631061,4.30667647,71179.0,71178.0,1e-08]
[1717629631261,4.29267647,71179.0,71178.0,1e-08]
[1717629631684,4.27867647,71179.0,71178.0,1e-08]
[1717629632005,4.29267647,71179.0,71178.0,1e-08]
[1717629632204,4.27867647,71179.0,71178.0,1e-08]
[1717629632435,1.22857222,71172.0,71171.0,0.002]
[1717629632645,2.87362789,71172.0,71171.0,0.002]
[1717629633086,3.30936075,71172.0,71171.0,0.002]
[1717629633520,3.55496075,71172.0,71171.0,0.002]
[1717629633726,3.55498013,71172.0,71171.0,0.002]
[1717629633943,3.454498,71172.0,71171.0,0.002]
[1717629634161,3.468498,71172.0,71171.0,0.002]
[1717629635045,3.48249766,71172.0,71171.0,0.002]
[1717629636658,3.60843014,71172.0,71171.0,0.002]
[1717629636821,3.48249766,71172.0,71171.0,0.002]
[1717629637244,3.48249766,71172.0,71171.0,0.1566]
[1717629637464,3.33737979,71172.0,71171.0,0.1566]
[1717629638912,3.39362879,71172.0,71171.0,0.1566]
[1717629639115,3.51952947,71172.0,71171.0,0.1566]
[1717629639362,3.51973323,71172.0,71171.0,0.1566]
[1717629639563,3.08388148,71172.0,71171.0,0.1566]
[1717629640031,3.08388148,71172.0,71171.0,0.002]
[1717629640448,2.95798085,71172.0,71171.0,0.002]
[1717629640770,2.98363156,71172.0,71171.0,0.002]
[1717629640981,3.10953219,71172.0,71171.0,0.002]
[1717629641200,2.98363156,71172.0,71171.0,0.002]
[1717629641816,2.96963156,71172.0,71171.0,0.002]
[1717629642244,2.98363156,71172.0,71171.0,0.002]
[1717629642465,2.95798085,71172.0,71171.0,0.002]
[1717629643105,2.94398085,71172.0,71171.0,0.002]
[1717629643322,2.9439818,71172.0,71171.0,0.002]
[1717629643567,2.87158113,71172.0,71171.0,0.0771]
[1717629643791,2.72398113,71172.0,71171.0,0.0771]
[1717629644018,1.63917438,71172.0,71171.0,0.2416]
[1717629644228,1.59215201,71172.0,71171.0,0.2416]
[1717629644429,1.4050691,71172.0,71171.0,0.2416]
[1717629644666,1.36342148,71172.0,71171.0,0.2416]
[1717629644904,1.74460357,71172.0,71171.0,0.2416]
[1717629645131,1.91746236,71172.0,71171.0,0.2416]
[1717629645546,2.22147136,71172.0,71171.0,0.2416]
[1717629645763,2.20747136,71172.0,71171.0,0.2416]
[1717629645969,2.24244409,71172.0,71171.0,0.2416]
[1717629646426,2.22844409,71172.0,71171.0,0.2416]
[1717629646635,2.22396503,71172.0,71171.0,0.2416]
[1717629646845,2.23796503,71172.0,71171.0,0.2416]
[1717629647061,2.31484794,71172.0,71171.0,0.2416]
[1717629647476,2.22396503,71172.0,71171.0,0.2416]
[1717629647709,2.13756436,71172.0,71171.0,0.2416]
[1717629648395,2.22396503,71172.0,71171.0,0.2416]
[1717629648605,2.23796503,71172.0,71171.0,0.2416]
[1717629649648,2.1513953,71172.0,71171.0,0.2416]
[1717629649873,2.44284527,71172.0,71171.0,0.2416]
[1717629652567,2.36998648,71172.0,71171.0,0.2416]
[1717629652771,2.44284901,71172.0,71171.0,0.2416]
[1717629654788,2.52924968,71172.0,71171.0,0.2416]
[1717629655372,2.37464901,71172.0,71171.0,0.2416]
[1717629655609,2.44284901,71172.0,71171.0,0.2416]
[1717629656693,2.44284901,71172.0,71171.0,0.46446764]
[1717629656694,1.49875189,71172.0,71171.0,0.46446764]
[1717629656819,0.73486253,71172.0,71171.0,0.46446764]
[1717629657021,0.802504,71172.0,71171.0,0.34675675]
[1717629657491,0.662,71172.0,71171.0,0.46962439]
[1717629657696,0.648,71172.0,71171.0,0.46962439]
[1717629658345,0.788504,71172.0,71171.0,0.46962439]
[1717629658490,0.774504,71172.0,71171.0,0.46962439]
[1717629658697,0.634,71172.0,71171.0,0.46962439]
[1717629658902,0.648,71172.0,71171.0,0.46962439]
[1717629659232,0.634,71172.0,71171.0,0.46035608]
[1717629659405,0.648,71172.0,71171.0,0.46962439]
[1717629659585,0.802504,71172.0,71171.0,0.46962439]
[1717629659806,0.774504,71172.0,71171.0,0.46962439]
[1717629660376,0.802504,71172.0,71171.0,0.34675675]
[1717629661410,0.802504,71172.0,71171.0,0.46962439]
[1717629661644,0.662,71172.0,71171.0,0.46962439]
[1717629662237,0.662,71172.0,71171.0,0.46035608]
[1717629662657,0.662,71172.0,71171.0,0.46962439]
[1717629667199,0.662,71172.0,71171.0,0.61013039]
[1717629667638,0.028,71172.0,71171.0,0.72982153]
[1717629667844,0.056231,71181.0,71180.0,0.14975631]
[1717629668049,0.04196673,71185.0,71180.0,0.14975631]
[1717629668050,0.04196673,71185.0,71184.0,0.35496764]
[1717629668258,0.04196673,71188.0,71186.0,0.2321]
[1717629668465,0.1,71189.0,71188.0,0.35496764]
[1717629668892,0.156224,71189.0,71188.0,0.35496764]
[1717629669560,0.056224,71189.0,71188.0,0.35496764]
[1717629669783,0.156224,71189.0,71188.0,0.35496764]
[1717629670023,0.156224,71189.0,71188.0,0.2321]
[1717629670245,0.170224,71189.0,71188.0,0.2321]
[1717629670459,0.170224,71189.0,71188.0,0.23724795]
[1717629670690,0.184224,71189.0,71188.0,0.23724795]
[1717629670897,0.084224,71189.0,71188.0,0.23724795]
[1717629671107,0.079224,71189.0,71188.0,0.23724795]
[1717629671365,0.219695,71189.0,71188.0,0.23724795]
[1717629671571,0.319695,71189.0,71188.0,0.23724795]
[1717629671773,0.319695,71189.0,71188.0,0.2321]
[1717629672217,0.319695,71189.0,71188.0,0.23724795]
[1717629675357,0.319695,71189.0,71188.0,0.36011559]
[1717629675571,0.319695,71189.0,71188.0,0.35084728]
[1717629675765,0.319695,71189.0,71188.0,0.23724795]
[1717629680358,0.319695,71189.0,71188.0,0.36011559]
[1717629680564,0.319695,71189.0,71188.0,0.35084728]
[1717629680824,0.319695,71189.0,71188.0,0.23724795]
[1717629687820,0.319695,71189.0,71188.0,0.36011559]
[1717629688044,0.319695,71189.0,71188.0,0.35084728]
[1717629688313,0.319695,71189.0,71188.0,0.23724795]
[1717629688493,0.319695,71189.0,71188.0,0.35084728]
[1717629688866,0.319695,71189.0,71188.0,0.23724795]
[1717629689077,0.319695,71189.0,71188.0,0.36011559]
[1717629690459,0.079224,71189.0,71188.0,0.36011559]
[1717629690672,0.079224,71189.0,71188.0,0.3628456]
[1717629690880,0.028,71189.0,71188.0,0.3628456]
[1717629691217,0.028,71189.0,71188.0,0.5519916]
[1717629691421,0.028,71189.0,71188.0,0.5319916]
[1717629691635,0.02886,71189.0,71188.0,0.5319916]
[1717629692032,0.01486,71189.0,71188.0,0.5319916]
[1717629692643,0.02686,71189.0,71188.0,0.5329916]
[1717629693078,0.01286,71189.0,71188.0,0.5329916]
[1717629693481,0.02486,71189.0,71188.0,0.5339916]
[1717629693911,0.02486,71189.0,71188.0,0.4657916]
[1717629714033,0.06692266,71189.0,71188.0,0.4657916]
[1717629715365,0.02486,71189.0,71188.0,0.4657916]
[1717629715968,0.06692237,71189.0,71188.0,0.4657916]
[1717629716350,0.02486,71189.0,71188.0,0.4657916]
[1717629720889,0.06692946,71189.0,71188.0,0.4657916]
[1717629721688,0.06693171,71189.0,71188.0,0.4657916]
[1717629725367,0.06693171,71189.0,71188.0,0.11082396]
[1717629725368,0.17776,71189.0,71188.0,0.11082396]
[1717629725657,0.46342262,71189.0,71188.0,0.11082396]
[1717629725899,0.46342262,71189.0,71188.0,0.102946]
[1717629725900,0.78433411,71189.0,71188.0,0.102946]
[1717629726095,0.88948681,71189.0,71188.0,0.102946]
[1717629726347,0.81665496,71189.0,71188.0,0.102946]
[1717629726746,0.88948946,71189.0,71188.0,0.002946]
[1717629726998,0.78433676,71189.0,71188.0,0.102946]
[1717629727202,0.88952256,71189.0,71188.0,0.102946]
[1717629727963,0.88954512,71189.0,71188.0,0.102946]
[1717629728968,0.78434854,71189.0,71188.0,0.102946]
[1717629729165,0.88954512,71189.0,71188.0,0.102946]
[1717629730464,0.88954512,71189.0,71188.0,0.002946]
[1717629730664,0.88954512,71189.0,71188.0,0.102946]
[1717629732418,0.78434854,71189.0,71188.0,0.102946]
[1717629732629,0.88955587,71189.0,71188.0,0.102946]
[1717629733222,0.78434854,71189.0,71188.0,0.102946]
[1717629733428,0.88955732,71189.0,71188.0,0.102946]
[1717629734044,0.65455732,71189.0,71188.0,0.22581364]
[1717629734479,0.65455732,71189.0,71188.0,0.23357604]
[1717629734629,0.56068482,71189.0,71188.0,0.23357604]
[1717629734835,0.47651395,71189.0,71188.0,0.23357604]
[1717629735243,0.56068482,71189.0,71188.0,0.23357604]
[1717629735451,0.57730403,71189.0,71188.0,0.23357604]
[1717629736497,0.49313316,71189.0,71188.0,0.23357604]
[1717629736704,0.57730403,71189.0,71188.0,0.23357604]
[1717629737408,0.57730403,71189.0,71188.0,0.13357604]
[1717629737578,0.57730403,71189.0,71188.0,0.23357604]
[1717629737823,0.43683303,71189.0,71188.0,0.23357604]
[1717629743983,0.43683146,71189.0,71188.0,0.23357604]
[1717629744193,0.35264163,71189.0,71188.0,0.23357604]
[1717629744392,0.04147921,71189.0,71188.0,0.23357604]
[1717629744601,0.10462359,71189.0,71188.0,0.23357604]
[1717629746184,0.1046244,71189.0,71188.0,0.23357604]
[1717629746663,0.04147921,71189.0,71188.0,0.23357604]
[1717629747042,0.35263891,71189.0,71188.0,0.23357604]
[1717629747581,0.04147921,71189.0,71188.0,0.23357604]
[1717629748193,0.02486,71189.0,71188.0,0.23357604]
[1717629749027,0.33601926,71189.0,71188.0,0.23357604]
[1717629749373,0.336019,71189.0,71188.0,0.23357604]
[1717629750383,0.02486,71189.0,71188.0,0.23357604]
[1717629750579,0.33601921,71189.0,71188.0,0.23357604]
[1717629751005,0.33601921,71189.0,71188.0,0.22430773]
[1717629751192,0.33601921,71189.0,71188.0,0.1107084]
[1717629751399,0.33601921,71189.0,71188.0,0.22430773]
[1717629751400,0.4202128,71189.0,71188.0,0.22430773]
[1717629751821,0.4202128,71189.0,71188.0,0.23357604]
[1717629753098,0.4202128,71189.0,71188.0,0.22430773]
[1717629753362,0.4202128,71189.0,71188.0,0.23357604]
[1717629753517,0.4202128,71189.0,71188.0,0.22430773]
[1717629753801,0.4202128,71189.0,71188.0,0.1107084]
[1717629754069,0.4202128,71189.0,71188.0,0.23357604]
[1717629755479,0.5606838,71189.0,71188.0,0.1107084]
[1717629759867,0.5606838,71189.0,71188.0,0.22430773]
[1717629760081,0.5606838,71189.0,71188.0,0.1107084]
[1717629760712,0.47649021,71189.0,71188.0,0.1107084]
[1717629761155,0.5817322,71189.0,71188.0,0.1107084]
[1717629764487,0.65456292,71189.0,71188.0,0.1107084]
[1717629765239,0.65461313,71189.0,71188.0,0.1107084]
[1717629767684,0.72281313,71189.0,71188.0,0.10860512]
[1717629768092,0.233531,71189.0,71188.0,0.10860512]
[1717629768258,0.72281565,71189.0,71188.0,0.10860512]
[1717629769552,0.64998493,71189.0,71188.0,0.10860512]
[1717629769751,0.72281566,71189.0,71188.0,0.10860512]
[1717629770173,0.7228203,71189.0,71188.0,0.10860512]
[1717629771318,0.6546203,71189.0,71188.0,0.10860512]
[1717629771689,0.65462735,71189.0,71188.0,0.10860512]
[1717629773315,0.58179662,71189.0,71188.0,0.10860512]
[1717629774118,1.07468683,71189.0,71188.0,0.002946]
[1717629774491,1.75763067,71189.0,71188.0,0.002946]
[1717629774711,1.92261806,71189.0,71188.0,0.002946]
[1717629774915,2.35828606,71189.0,71188.0,0.002946]
[1717629775126,2.34628606,71189.0,71188.0,0.001946]
[1717629775340,2.33428606,71189.0,71188.0,0.000946]
[1717629775548,2.35728606,71189.0,71188.0,0.002946]
[1717629775856,2.44368673,71189.0,71188.0,0.002946]
[1717629776456,2.43168673,71189.0,71188.0,0.001946]
[1717629776837,2.44368673,71189.0,71188.0,0.002946]
[1717629777040,2.43168673,71189.0,71188.0,0.001946]
[1717629777462,2.42068673,71189.0,71188.0,0.000946]
[1717629777893,2.43468673,71189.0,71188.0,0.000946]
[1717629778318,2.83468673,71189.0,71188.0,0.000946]
[1717629778505,2.82068673,71189.0,71188.0,0.000946]
[1717629778702,2.83468673,71189.0,71188.0,0.000946]
[1717629778875,2.84868673,71189.0,71188.0,0.000946]
[1717629779511,2.76228606,71189.0,71188.0,0.000946]
[1717629779711,2.762299,71189.0,71188.0,0.000946]
[1717629780094,2.84869967,71189.0,71188.0,0.000946]
[1717629780683,3.12964167,71189.0,71188.0,0.000946]
[1717629780932,3.12964167,71189.0,71171.0,0.002]
[1717629780933,0.140504,71172.0,71171.0,0.002]
[1717629781132,0.55282146,71172.0,71171.0,0.002]
[1717629781369,0.489713,71172.0,71171.0,0.002]
[1717629781551,0.56353216,71172.0,71171.0,0.002]
[1717629782319,0.489713,71172.0,71171.0,0.002]
[1717629782748,0.503713,71172.0,71171.0,0.002]
[1717629782944,0.52844469,71172.0,71171.0,0.002]
[1717629783172,0.51444469,71172.0,71171.0,0.002]
[1717629783373,0.55648206,71172.0,71171.0,0.002]
[1717629783575,0.57048206,71172.0,71171.0,0.002]
[1717629784209,0.57048184,71172.0,71171.0,0.002]
[1717629784450,0.55648184,71172.0,71171.0,0.002]
[1717629784609,0.54575015,71172.0,71171.0,0.002]
[1717629784834,0.55975015,71172.0,71171.0,0.002]
[1717629785427,0.517713,71172.0,71171.0,0.002]
[1717629785671,0.52844469,71172.0,71171.0,0.00710512]
[1717629785837,0.52844469,71172.0,71171.0,0.002]
[1717629786229,0.52844469,71172.0,71171.0,0.102]
[1717629786230,0.517713,71172.0,71171.0,0.102]
[1717629786894,0.52844469,71172.0,71171.0,0.10710607]
[1717629787243,0.52844469,71172.0,71171.0,0.00710607]
[1717629788664,0.517713,71172.0,71171.0,0.00710607]
[1717629789713,0.517713,71172.0,71171.0,0.10710607]
[1717629790577,0.168504,71172.0,71171.0,0.46837371]
[1717629791008,0.18496711,71172.0,71171.0,0.46837371]
[1717629791612,0.46597611,71172.0,71171.0,0.46837371]
[1717629791808,0.46597611,71172.0,71171.0,0.3404]
[1717629792010,0.18496711,71172.0,71171.0,0.34551252]
[1717629793064,0.18496711,71172.0,71171.0,0.45911185]
[1717629795913,0.18496711,71172.0,71171.0,0.46005785]
[1717629799930,0.18496711,71172.0,71171.0,0.46932616]
[1717629801306,0.18496711,71172.0,71171.0,0.36932616]
[1717629801509,0.18496711,71172.0,71171.0,0.46932616]
[1717629803686,0.168504,71172.0,71171.0,0.46932616]
[1717629804533,0.168504,71172.0,71171.0,0.34645852]
[1717629807707,0.168504,71172.0,71171.0,0.24645852]
[1717629807912,0.168504,71172.0,71171.0,0.34645852]
[1717629809356,0.24135305,71172.0,71171.0,0.34645852]
[1717629809773,0.24135305,71172.0,71171.0,0.18315852]
[1717629810446,0.25208474,71172.0,71171.0,0.18315852]
[1717629810653,0.24135305,71172.0,71171.0,0.10805852]
[1717629814473,0.2833672,71172.0,71171.0,0.10805852]
[1717629815620,0.2833672,71172.0,71171.0,0.00805852]
[1717629815621,1.22882167,71172.0,71171.0,0.00805852]
[1717629815847,1.78278169,71172.0,71171.0,0.002946]
[1717629816087,2.2128133,71172.0,71171.0,0.002946]
[1717629816313,2.29921397,71172.0,71171.0,0.002946]
[1717629817248,2.27121397,71172.0,71171.0,0.002946]
[1717629817455,2.29581485,71172.0,71171.0,0.002946]
[1717629817656,3.1448476,71172.0,71171.0,0.002946]
[1717629817804,3.1308476,71172.0,71171.0,0.002946]
[1717629818008,0.80000322,71168.0,71167.0,0.009493]
[1717629818228,2.69451489,71168.0,71167.0,0.009493]
[1717629818452,2.38318955,71168.0,71167.0,0.009493]
[1717629818583,3.13037654,71168.0,71167.0,0.009493]
[1717629819014,3.13039601,71168.0,71167.0,0.009493]
[1717629819286,3.25890273,71168.0,71167.0,0.009493]
[1717629820626,3.27290273,71168.0,71167.0,0.009493]
[1717629821173,3.28690273,71168.0,71167.0,0.009493]
[1717629821398,3.56792773,71168.0,71167.0,0.009493]
[1717629821596,3.56792773,71168.0,71159.0,0.009493]
[1717629821597,1.16632522,71160.0,71159.0,0.009493]
[1717629821939,3.09270044,71160.0,71159.0,0.009493]
[1717629822172,3.5286163,71160.0,71159.0,0.009493]
[1717629822450,3.21870848,71160.0,71159.0,0.009493]
[1717629822633,3.8096723,71160.0,71159.0,0.009493]
[1717629822859,4.14479017,71160.0,71159.0,0.009493]